[Event "4th EFE Metz Festival-IM"]
[Site "Metz"]
[Date "2018.07.27"]
[Round "6"]
[White "Mohammad, Fahim"]
[Black "Gatineau, Yovann"]
[Result "0-1"]
[ECO "D30"]
[WhiteElo "2383"]
[BlackElo "2373"]
[Annotator "NA"]
[PlyCount "90"]
[EventDate "2018.07.22"]
[EventType "tourn"]
[EventCountry "FRA"]
[SourceTitle "playchess.com"]
[Source "ChessBase"]
[SourceQuality "1"]
[TimeControl "5400+30"]

1. d4 {[%emt 0:05:52]} d5 {[%emt 0:01:05]} 2. c4 {[%emt 0:00:08]} e6 {[%emt 0:00:06]} 3. Nf3 {[%emt 0:00:24]} Nf6 {[%emt 0:00:16]} 4. e3 {[%emt 0:00:25]} Be7 {[%emt 0:00:24]} 5. Bd3 {[%emt 0:01:22]} O-O {[%emt 0:00:32]} 6. Nc3 {[%emt 0:02:02]} c5 {[%emt 0:02:36]} 7. cxd5 {[%emt 0:02:21]} exd5 {[%emt 0:02:57]} 8. dxc5 {[%emt 0:00:16]} Bxc5 {[%emt 0:00:33]} 9. h3 {[%emt 0:01:03]} Nc6 {[%emt 0:00:43]} 10. O-O {[%emt 0:00:13]} Qe7 {[%emt 0:10:18] D37: Damengambit (5.Lf4)} (10... Be6 11. b3 Qe7 12. Bb2 Rfd8 13. Ne2 Ne4 14. Nfd4 Ne5 15. Nf4 Bxd4 16. Bxd4 Nxd3 17. Qxd3 Bf5 18. Qe2 {½-½ (48) Salem,A (2638)-Amin,B (2689) Riadh 2017}) 11. a3 {[%emt 0:10:54]} Ne5 {[%emt 0:20:01]} 12. Nd4 $146 {[%emt 0:09:46]} ({Vorgänger:} 12. Bc2 Rd8 13. Nd4 a6 14. b3 Nc6 15. Qd3 Ne5 16. Qe2 Be6 17. Bb2 Rac8 18. Nf5 Bxf5 19. Bxf5 {0-1 (42) Kienel,N (1949)-Grube,A (2111) GER email 2012}) 12... Nxd3 {[%emt 0:05:14]} 13. Qxd3 {[%emt 0:00:02]} Qe5 {[%emt 0:00:09]} 14. b4 {[%emt 0:04:14]} Bd6 {[%emt 0:00:37]} 15. f4 {[%emt 0:00:13]} Qe7 {[%emt 0:04:14]} 16. Bb2 {[%emt 0:07:30]} Re8 {[%emt 0:00:44]} 17. Rf3 {[%emt 0:04:22]} Bd7 {[%emt 0:03:08]} ({Black should try} 17... a5 $11) 18. Nf5 {[%emt 0:14:21]} ({Better is} 18. Rg3 $14) 18... Bxf5 $1 {[%emt 0:00:10]} 19. Qxf5 {[%emt 0:00:07]} Qe6 {[%emt 0:00:26]} 20. Qg5 {[%emt 0:03:25]} h6 {[%emt 0:04:09]} 21. Qg3 {[%emt 0:03:01]} Rac8 {[%emt 0:03:50]} 22. Rd1 {[%emt 0:03:11]} Bf8 {[%emt 0:01:04]} 23. Rd4 {[%emt 0:10:54]} Qf5 {[%emt 0:06:58]} (23... a5 $5) 24. Rf2 {[%emt 0:02:34] [#]} a5 $1 {[%emt 0:02:50]} 25. Qf3 {[%emt 0:02:10]} axb4 {[%emt 0:02:20]} 26. axb4 {[%emt 0:00:08]} Rxc3 {[%emt 0:04:20]} 27. Bxc3 {[%emt 0:00:25]} Ne4 {[%emt 0:00:03]} 28. Be1 {[%emt 0:02:05]} Nxf2 {[%emt 0:00:00]} 29. Kxf2 $11 {[%emt 0:02:07]} Re4 {[%emt 0:02:48]} 30. Rxe4 {[%emt 0:00:42]} dxe4 {[%emt 0:02:44]} 31. Qd1 {[%emt 0:00:25]} Be7 {[%emt 0:01:20]} 32. Qd4 {[%emt 0:02:44]} Bf6 {[%emt 0:01:15]} 33. Qc4 {[%emt 0:00:13]} Qe6 {[%emt 0:09:23]} 34. Qxe6 {[%emt 0:01:29]} fxe6 {[%emt 0:00:04]} 35. Ke2 {[%emt 0:00:27]} Kf7 {[%emt 0:00:06]} 36. Kd2 {[%emt 0:00:30]} b5 {[%emt 0:01:44]} 37. Kc2 {[%emt 0:00:35]} e5 {[%emt 0:04:43]} 38. f5 {[%emt 0:04:04]} h5 {[%emt 0:00:06]} 39. Kc3 {[%emt 0:01:31]} Bg5 {[%emt 0:00:58]} 40. Kd2 {[%emt 0:01:12]} h4 {[%emt 0:00:26]} 41. Bf2 {[%emt 0:00:31]} Kf6 {[%emt 0:00:14]} 42. g4 {[%emt 0:00:13]} hxg3 43. Bxg3 {[%emt 0:00:00]} Kxf5 {[%emt 0:00:29]} 44. Bf2 {[%emt 0:00:41]} Be7 {[%emt 0:00:33]} 45. Kc3 {[%emt 0:00:13]} g5 {[%emt 0:00:27] Kd4} 0-1

[Event "4th EFE Metz Festival-IM"]
[Site "Metz"]
[Date "2018.07.27"]
[Round "6"]
[White "Stephan, Victor"]
[Black "Villegas, Pierre"]
[Result "1/2-1/2"]
[ECO "E46"]
[WhiteElo "2356"]
[BlackElo "2376"]
[Annotator "NA"]
[PlyCount "73"]
[EventDate "2018.07.22"]
[EventType "tourn"]
[EventCountry "FRA"]
[SourceTitle "playchess.com"]
[Source "ChessBase"]
[SourceQuality "1"]
[TimeControl "5400+30"]

1. d4 {[%emt 0:00:00]} Nf6 {[%emt 0:00:09]} 2. c4 {[%emt 0:00:05]} e6 {[%emt 0:00:06]} 3. Nc3 {[%emt 0:00:12]} Bb4 {[%emt 0:00:07]} 4. e3 {[%emt 0:01:02]} O-O {[%emt 0:00:27]} 5. Nge2 {[%emt 0:00:09]} c6 {[%emt 0:00:27] E46: Nimzo-Indian: Rubinstein: 4 e3 0-0 5 Ne2 without early Bd3} (5... d5 6. a3 Be7 7. cxd5 exd5 8. Nf4 c6 9. Bd3 Na6 10. O-O Nc7 11. f3 Re8 12. Bd2 Bf8 13. Qe1 g6 14. g4 c5 15. Qf2 b6 16. h4 Bd6 17. Nce2 {0-1 (54) Caruana,F (2816)-Karjakin,S (2782) Leuven 2018}) 6. a3 {[%emt 0:00:58]} Ba5 {[%emt 0:00:05]} 7. Qc2 {[%emt 0:00:16]} d5 {[%emt 0:00:22]} 8. Ng3 {[%emt 0:00:31]} Nbd7 {[%emt 0:00:36]} 9. Be2 {[%emt 0:00:31]} dxc4 {[%emt 0:00:32]} 10. Bxc4 {[%emt 0:00:12]} e5 {[%emt 0:00:22]} 11. O-O {[%emt 0:01:03]} exd4 {[%emt 0:00:19]} 12. exd4 {[%emt 0:00:12]} Bc7 {[%emt 0:00:21]} 13. Bg5 {[%emt 0:10:21]} Nb6 $146 {[%emt 0:25:57]} 14. Ba2 {[%emt 0:01:49]} h6 {[%emt 0:01:20]} 15. Be3 {[%emt 0:06:16]} Nfd5 {[%emt 0:05:59]} 16. Rae1 {[%emt 0:04:34]} f5 {[%emt 0:03:09]} 17. Bc1 {[%emt 0:07:29]} Kh8 {[%emt 0:16:55]} 18. f4 {[%emt 0:03:20]} (18. Re2 $11) 18... Qd6 {[%emt 0:09:51]} 19. Re5 {[%emt 0:05:50]} Qg6 {[%emt 0:01:29]} 20. Re2 {[%emt 0:06:42]} Be6 {[%emt 0:01:18]} 21. Rfe1 {[%emt 0:02:44]} Bg8 {[%emt 0:01:07]} 22. Bb1 {[%emt 0:04:53]} Qf6 {[%emt 0:05:25]} 23. Kh1 {[%emt 0:02:25]} (23. Nxf5 $11 {keeps the balance.} Bh7 24. g4) 23... g6 {[%emt 0:05:05]} 24. Nd1 $2 {[%emt 0:07:22]} (24. Ba2 $17) 24... Bf7 {[%emt 0:01:45]} 25. Nf2 {[%emt 0:01:19]} Nxf4 {[%emt 0:02:36]} (25... Qxd4 26. b3 $11) 26. Bxf4 {[%emt 0:04:36]} Bxf4 {[%emt 0:00:01]} 27. Nd3 {[%emt 0:00:27]} Nd5 {[%emt 0:02:38]} 28. Nxf4 {[%emt 0:09:34]} (28. Ne5 $17) 28... Nxf4 {[%emt 0:00:02]} 29. Rf2 {[%emt 0:01:04]} Nd5 $19 {[%emt 0:01:04]} ({Keinesfalls} 29... Qxd4 30. Rd1 $17) 30. Re5 {[%emt 0:02:51]} Rae8 {[%emt 0:01:34]} 31. Qe2 {[%emt 0:01:32]} Qg7 {[%emt 0:03:45]} 32. Rf1 {[%emt 0:03:17]} c5 {[%emt 0:00:47]} 33. Qb5 {[%emt 0:04:06]} Ne3 {[%emt 0:01:25]} 34. Rc1 {[%emt 0:02:50]} Rxe5 {[%emt 0:03:12]} 35. dxe5 {[%emt 0:00:02]} Bd5 {[%emt 0:01:16]} 36. Qxc5 {[%emt 0:00:55]} f4 {[%emt 0:00:27]} 37. Ne4 {[%emt 0:01:03]} 1/2-1/2

[Event "4th EFE Metz Festival-IM"]
[Site "Metz"]
[Date "2018.07.27"]
[Round "6"]
[White "Adrian, Claude"]
[Black "Le Corre, Benjamin"]
[Result "0-1"]
[ECO "A10"]
[WhiteElo "2267"]
[BlackElo "2257"]
[Annotator "NA"]
[PlyCount "80"]
[EventDate "2018.07.22"]
[EventType "tourn"]
[EventCountry "FRA"]
[SourceTitle "playchess.com"]
[Source "ChessBase"]
[SourceQuality "1"]
[TimeControl "5400+30"]

1. c4 {[%emt 0:00:00]} g6 {[%emt 0:00:00]} 2. d4 {[%emt 0:01:52]} Bg7 {[%emt 0:00:05]} 3. g3 {[%emt 0:00:28]} d6 {[%emt 0:01:51]} 4. Bg2 {[%emt 0:00:09]} Nc6 {[%emt 0:04:46]} 5. d5 {[%emt 0:04:04]} Na5 {[%emt 0:03:42]} 6. Nd2 {[%emt 0:05:02]} c5 {[%emt 0:00:43]} 7. Rb1 {[%emt 0:01:44]} Nf6 {[%emt 0:03:44]} 8. a3 {[%emt 0:01:40]} b6 {[%emt 0:03:33]} 9. b4 {[%emt 0:00:40]} Nb7 {[%emt 0:00:18]} 10. e4 {[%emt 0:00:40]} O-O {[%emt 0:00:39]} 11. Ne2 {[%emt 0:05:00]} Bd7 {[%emt 0:15:15]} 12. O-O {[%emt 0:02:25]} b5 {[%emt 0:14:20]} 13. Bb2 {[%emt 0:10:22]} Rc8 {[%emt 0:11:11]} 14. Qb3 {[%emt 0:05:27]} a5 {[%emt 0:02:48]} 15. Rfc1 {[%emt 0:03:13]} axb4 {[%emt 0:01:20]} 16. axb4 {[%emt 0:02:03]} cxb4 {[%emt 0:00:04]} 17. Qxb4 {[%emt 0:06:44]} Nc5 $1 {[%emt 0:01:03]} 18. cxb5 {[%emt 0:03:10]} Rb8 {[%emt 0:03:38]} 19. Nd4 {[%emt 0:03:28]} Nd3 $1 {[%emt 0:00:48]} 20. Qb3 $2 {[%emt 0:09:15]} (20. Qc4 $11 {and White is okay.} Nxb2 21. Rxb2) 20... Nxc1 {[%emt 0:01:55]} 21. Rxc1 {[%emt 0:01:37] [#]} Ng4 $2 {[%emt 0:04:06]} ({Black should play} 21... Bxb5 $1 $19 {[%mdl 512]} 22. Nxb5 Qa5) 22. Bf1 {[%emt 0:13:22]} Qb6 {[%emt 0:04:08]} 23. Nc4 {[%emt 0:03:01]} Qb7 {[%emt 0:01:25]} 24. h3 $11 {[%emt 0:06:50]} (24. f3 $16) 24... Ne5 {[%emt 0:08:30]} 25. Nd2 {[%emt 0:04:47]} Rfc8 {[%emt 0:01:01]} 26. Rxc8+ {[%emt 0:01:07]} Qxc8 {[%emt 0:00:35]} 27. f4 {[%emt 0:00:43]} Qc5 {[%emt 0:00:14]} 28. fxe5 {[%emt 0:02:43]} dxe5 {[%emt 0:00:17]} 29. Qc2 {[%emt 0:02:11]} Qb6 {[%emt 0:00:30]} 30. Nc4 {[%emt 0:00:11]} Qc5 {[%emt 0:00:33]} 31. Ne3 {[%emt 0:00:34]} Qa7 {[%emt 0:00:29]} 32. Nc6 {[%emt 0:00:55]} Bxc6 {[%emt 0:02:51]} 33. dxc6 {[%emt 0:00:17]} Bh6 {[%emt 0:00:07]} 34. Bxe5 {[%emt 0:00:43]} Bxe3+ {[%emt 0:00:22]} 35. Kg2 {[%emt 0:00:11]} Rd8 {[%emt 0:01:03]} 36. c7 {[%emt 0:00:31]} Rc8 {[%emt 0:00:04]} 37. Qc6 {[%emt 0:00:49]} Qa2+ {[%emt 0:01:31]} 38. Kf3 {[%emt 0:00:30]} Qf2+ {[%emt 0:00:22]} 39. Kg4 {[%emt 0:00:01]} Qxf1 {[%emt 0:02:26]} 40. h4 {[%emt 0:00:00]} h5# 0-1

[Event "4th EFE Metz Festival-IM"]
[Site "Metz"]
[Date "2018.07.27"]
[Round "6"]
[White "Mohota, Nisha"]
[Black "Haast, Mark"]
[Result "1/2-1/2"]
[ECO "B31"]
[WhiteElo "2265"]
[BlackElo "2356"]
[Annotator "NA"]
[PlyCount "107"]
[EventDate "2018.07.22"]
[EventType "tourn"]
[EventCountry "FRA"]
[SourceTitle "playchess.com"]
[Source "ChessBase"]
[SourceQuality "1"]
[TimeControl "5400+30"]

1. e4 {[%emt 0:00:00]} c5 {[%emt 0:01:38]} 2. Nf3 {[%emt 0:00:00]} Nc6 {[%emt 0:00:11]} 3. Bb5 {[%emt 0:00:00]} g6 {[%emt 0:01:58]} 4. Bxc6 {[%emt 0:00:03]} dxc6 {[%emt 0:00:43]} 5. d3 {[%emt 0:00:21]} Bg7 {[%emt 0:00:15]} 6. h3 {[%emt 0:00:21]} Nf6 {[%emt 0:00:30]} 7. Nc3 {[%emt 0:00:24]} Nd7 {[%emt 0:00:19]} 8. Be3 {[%emt 0:00:55]} e5 {[%emt 0:00:23]} 9. Qd2 {[%emt 0:00:31]} h6 {[%emt 0:02:35] B31: Sicilian: 2...Nc6 3 Bb5 g6} (9... Qe7 10. Bh6 f6 11. Bxg7 Qxg7 12. Nh2 g5 13. Ng4 Nf8 14. Ne3 Ng6 15. a3 Be6 16. b4 Qe7 17. Na4 b6 18. g3 h5 {1-0 (48) Cheparinov,I (2703)-Kveinys,A (2542) Warsaw 2017}) 10. O-O {[%emt 0:01:54]} Qe7 {[%emt 0:00:22]} 11. Nh2 {[%emt 0:00:34]} Nf8 {[%emt 0:01:39]} 12. f4 {[%emt 0:00:18]} exf4 {[%emt 0:00:11]} 13. Bxf4 {[%emt 0:00:03]} Ne6 {[%emt 0:01:51]} 14. Bg3 {[%emt 0:00:31]} Nd4 {[%emt 0:00:27]} 15. e5 {[%emt 0:02:05]} Be6 $146 {[%emt 0:03:04]} ({Predecessor:} 15... Bf5 16. Rae1 O-O-O 17. Ne4 Bxe4 18. Rxe4 {1-0 (40) Blomqvist,E (2545)-Arab,A (2493) Baku 2016}) 16. Ne4 {[%emt 0:01:45]} O-O-O {[%emt 0:00:16]} 17. Nd6+ {[%emt 0:00:14]} Rxd6 {[%emt 0:00:56]} 18. exd6 {[%emt 0:00:12]} Qd7 {[%emt 0:00:12]} 19. Rae1 {[%emt 0:10:24]} b6 {[%emt 0:00:41] [#]} 20. Ng4 $1 {[%emt 0:09:26]} Bxg4 {[%emt 0:04:11]} (20... Re8 $142 21. Nf6 (21. Nxh6 Nxc2 22. Qxc2 Bxh6 $16) 21... Bxf6) 21. hxg4 {[%emt 0:10:22]} Ne6 {[%emt 0:07:23]} 22. c3 {[%emt 0:01:19]} h5 {[%emt 0:02:34]} 23. gxh5 {[%emt 0:05:05]} Rxh5 {[%emt 0:00:20]} 24. Qe2 {[%emt 0:00:19]} Rg5 {[%emt 0:09:45]} 25. Bh2 {[%emt 0:01:11]} Rd5 {[%emt 0:17:36]} 26. Rxf7 {[%emt 0:12:39]} (26. Qg4 $18 {and White stays clearly on top.}) 26... Qxf7 {[%emt 0:00:11]} 27. Qxe6+ {[%emt 0:00:05]} Qxe6 {[%emt 0:00:07]} 28. Rxe6 {[%emt 0:00:03]} Bh6 {[%emt 0:02:12]} 29. Rxg6 {[%emt 0:00:17]} Bc1 {[%emt 0:00:11]} 30. Rg8+ {[%emt 0:00:38]} Kd7 {[%emt 0:00:38]} 31. Rg7+ {[%emt 0:00:32]} Kd8 {[%emt 0:00:24]} 32. c4 {[%emt 0:13:13]} Rxd3 {[%emt 0:00:13]} 33. Be5 {[%emt 0:01:04]} ({Don't do} 33. Rxa7 $6 Bxb2 34. Bf4 Bf6 $16) 33... Be3+ {[%emt 0:01:15]} 34. Kf1 {[%emt 0:01:20]} Bd4 {[%emt 0:00:11]} 35. Bxd4 {[%emt 0:01:49]} Rxd4 {[%emt 0:00:12]} 36. b3 {[%emt 0:07:03]} b5 {[%emt 0:03:59] [#]} 37. cxb5 $1 {[%emt 0:08:22]} cxb5 {[%emt 0:00:05]} 38. Rxa7 {[%emt 0:00:06]} Rxd6 {[%emt 0:04:54] [#]} 39. Rb7 $1 {[%emt 0:00:23]} b4 {[%emt 0:00:18]} 40. Ra7 $11 {[%emt 0:07:05]} Rd2 {[%emt 0:03:21]} 41. g4 {[%emt 0:01:32]} Rd4 {[%emt 0:00:52]} 42. g5 {[%emt 0:01:21]} Rf4+ {[%emt 0:00:41]} 43. Ke2 {[%emt 0:01:34]} Rg4 {[%emt 0:00:20]} 44. Rg7 {[%emt 0:01:58]} Rg2+ {[%emt 0:00:38]} 45. Kf3 {[%emt 0:00:02]} Rxa2 {[%emt 0:00:09]} 46. g6 {[%emt 0:00:22]} Ke8 {[%emt 0:00:25]} 47. Rc7 {[%emt 0:01:26]} Kf8 {[%emt 0:00:12]} 48. Ke4 {[%emt 0:01:37]} Rb2 {[%emt 0:00:35]} 49. Rxc5 {[%emt 0:00:56]} Rxb3 {[%emt 0:00:13]} 50. Rb5 {[%emt 0:00:31]} Kg7 {[%emt 0:00:08]} 51. Kd4 {[%emt 0:00:29]} Kxg6 {[%emt 0:00:06]} 52. Kc4 {[%emt 0:00:02]} Rb1 {[%emt 0:00:05]} 53. Rxb4 {[%emt 0:00:04]} Rxb4+ {[%emt 0:00:04]} 54. Kxb4 1/2-1/2

[Event "4th EFE Metz Festival-IM"]
[Site "Metz"]
[Date "2018.07.27"]
[Round "7"]
[White "Murdzia, Piotr"]
[Black "Stephan, Victor"]
[Result "1/2-1/2"]
[ECO "D00"]
[WhiteElo "2410"]
[BlackElo "2356"]
[Annotator "NA"]
[PlyCount "70"]
[EventDate "2018.07.22"]
[EventType "tourn"]
[EventCountry "FRA"]
[SourceTitle "playchess.com"]
[Source "ChessBase"]
[SourceQuality "1"]
[TimeControl "5400+30"]

1. d4 {[%emt 0:00:00]} d5 {[%emt 0:00:18]} 2. Bf4 {[%emt 0:00:03]} Nf6 {[%emt 0:00:31]} 3. e3 {[%emt 0:00:53]} e6 {[%emt 0:00:31]} 4. Nf3 {[%emt 0:00:43]} c5 {[%emt 0:00:33]} 5. c3 {[%emt 0:00:22]} Nc6 {[%emt 0:00:17]} 6. Nbd2 {[%emt 0:00:07]} Bd6 {[%emt 0:00:16]} 7. Bg3 {[%emt 0:00:06]} O-O {[%emt 0:00:23]} 8. Bb5 {[%emt 0:00:35]} Ne7 {[%emt 0:00:29]} 9. Bd3 {[%emt 0:01:38]} Qc7 {[%emt 0:02:43]} 10. Qe2 {[%emt 0:06:22]} Ng6 {[%emt 0:07:40]} 11. O-O {[%emt 0:12:02]} b6 {[%emt 0:06:15]} 12. Rac1 {[%emt 0:00:09]} Bb7 {[%emt 0:01:10]} 13. c4 {[%emt 0:08:52]} Bxg3 {[%emt 0:05:34]} 14. hxg3 {[%emt 0:00:23]} Qe7 {[%emt 0:06:15]} 15. e4 {[%emt 0:16:24]} dxe4 {[%emt 0:05:16]} 16. Nxe4 {[%emt 0:00:12]} cxd4 {[%emt 0:01:42]} 17. Nxd4 {[%emt 0:01:51]} Rfd8 {[%emt 0:02:09]} 18. Nf3 {[%emt 0:02:43]} Rac8 {[%emt 0:03:25]} 19. Rfd1 {[%emt 0:02:41]} Nxe4 {[%emt 0:02:53]} 20. Bxe4 {[%emt 0:00:04]} Bxe4 {[%emt 0:00:46]} 21. Qxe4 {[%emt 0:00:26]} h6 {[%emt 0:00:49]} 22. b3 {[%emt 0:11:12]} Qa3 {[%emt 0:07:22]} 23. Qb1 {[%emt 0:03:22]} Qc5 {[%emt 0:02:51]} 24. Rxd8+ {[%emt 0:06:44]} Rxd8 {[%emt 0:00:06]} 25. b4 {[%emt 0:00:08]} Qc6 {[%emt 0:03:59]} 26. c5 {[%emt 0:02:26]} bxc5 {[%emt 0:00:42]} 27. bxc5 {[%emt 0:01:01]} Rc8 {[%emt 0:02:50]} 28. Qb4 {[%emt 0:02:27]} Qd5 {[%emt 0:02:38]} 29. c6 {[%emt 0:06:12]} Rxc6 {[%emt 0:01:33]} 30. Qb8+ {[%emt 0:00:27]} Kh7 {[%emt 0:01:32]} 31. Rxc6 {[%emt 0:00:06]} Qxc6 {[%emt 0:00:06]} 32. Qxa7 {[%emt 0:00:03]} Qd5 {[%emt 0:01:52]} 33. Qxf7 {[%emt 0:10:41]} Qxa2 {[%emt 0:00:24]} 34. Kh2 {[%emt 0:00:14]} Qd5 {[%emt 0:00:55]} 35. Kg1 {[%emt 0:00:06]} Qd8 1/2-1/2

[Event "4th EFE Metz Festival-IM"]
[Site "Metz"]
[Date "2018.07.27"]
[Round "7"]
[White "Gatineau, Yovann"]
[Black "Mohota, Nisha"]
[Result "1/2-1/2"]
[ECO "D38"]
[WhiteElo "2373"]
[BlackElo "2265"]
[Annotator "NA"]
[PlyCount "109"]
[EventDate "2018.07.22"]
[EventType "tourn"]
[EventCountry "FRA"]
[SourceTitle "playchess.com"]
[Source "ChessBase"]
[SourceQuality "1"]
[TimeControl "5400+30"]

1. d4 {[%emt 0:07:24]} Nf6 {[%emt 0:00:20]} 2. Nf3 {[%emt 0:00:16]} d5 {[%emt 0:00:18]} 3. c4 {[%emt 0:00:11]} e6 {[%emt 0:00:05]} 4. Nc3 {[%emt 0:00:14]} Bb4 {[%emt 0:00:13]} 5. cxd5 {[%emt 0:00:13]} exd5 {[%emt 0:00:04]} 6. Bg5 {[%emt 0:00:10]} O-O {[%emt 0:00:44]} 7. Rc1 {[%emt 0:00:54]} h6 {[%emt 0:00:23]} 8. Bxf6 {[%emt 0:00:51]} Qxf6 {[%emt 0:00:16]} 9. e3 {[%emt 0:00:07]} c6 {[%emt 0:03:44]} 10. Bd3 {[%emt 0:01:44]} Bg4 {[%emt 0:08:43]} 11. h3 {[%emt 0:05:01]} Bxf3 {[%emt 0:01:42]} 12. Qxf3 {[%emt 0:00:05]} Qxf3 {[%emt 0:03:21]} 13. gxf3 {[%emt 0:00:06]} Nd7 {[%emt 0:00:12]} 14. Ke2 {[%emt 0:00:42]} Rfe8 {[%emt 0:02:40]} 15. a3 {[%emt 0:04:08]} Bd6 {[%emt 0:00:49]} 16. Kd2 {[%emt 0:03:10]} g6 {[%emt 0:07:29]} 17. Rhg1 {[%emt 0:01:19]} Kh7 {[%emt 0:04:25]} 18. Rg2 {[%emt 0:02:39]} Nf6 {[%emt 0:08:31]} 19. Na4 {[%emt 0:01:30]} Re7 {[%emt 0:06:46]} 20. Rgg1 {[%emt 0:07:26]} Rae8 {[%emt 0:06:30]} 21. Rc2 {[%emt 0:01:09]} Nh5 {[%emt 0:03:05]} 22. Nc5 {[%emt 0:02:29]} f5 {[%emt 0:04:25]} 23. b4 {[%emt 0:01:23]} Nf6 {[%emt 0:00:45]} 24. a4 {[%emt 0:15:17]} Rc7 {[%emt 0:05:09]} 25. Re1 {[%emt 0:06:34]} Nd7 {[%emt 0:09:27]} 26. e4 {[%emt 0:07:48]} Bf4+ {[%emt 0:07:49]} 27. Kc3 {[%emt 0:00:44]} Nxc5 {[%emt 0:03:29]} 28. bxc5 {[%emt 0:00:15]} b6 {[%emt 0:00:25]} 29. cxb6 {[%emt 0:02:54]} axb6 {[%emt 0:00:02]} 30. Rce2 {[%emt 0:00:21]} fxe4 {[%emt 0:04:52]} 31. fxe4 {[%emt 0:00:06]} Kg7 {[%emt 0:03:20]} 32. Rb1 {[%emt 0:08:31]} b5 {[%emt 0:02:56]} 33. a5 {[%emt 0:01:00]} Ra8 {[%emt 0:01:05]} 34. Ra1 {[%emt 0:05:55]} Rca7 {[%emt 0:00:13]} 35. exd5 {[%emt 0:00:33]} cxd5 {[%emt 0:00:04]} 36. Kb4 {[%emt 0:01:05]} Bd6+ {[%emt 0:01:50]} 37. Kxb5 {[%emt 0:00:05]} Rc7 {[%emt 0:00:06]} 38. Ka4 {[%emt 0:05:57]} Rc3 {[%emt 0:01:13]} 39. Bb5 {[%emt 0:02:06]} Kf6 {[%emt 0:00:34]} 40. Raa2 {[%emt 0:02:49]} g5 {[%emt 0:00:56]} 41. Rec2 {[%emt 0:01:51]} Rac8 {[%emt 0:00:09]} 42. Rxc3 {[%emt 0:00:31]} Rxc3 {[%emt 0:00:03]} 43. a6 {[%emt 0:00:12]} Bb8 {[%emt 0:00:06]} 44. Kb4 {[%emt 0:01:36]} Rc7 {[%emt 0:00:02]} 45. Ka5 {[%emt 0:02:35]} Ba7 {[%emt 0:00:09]} 46. Rd2 {[%emt 0:00:22]} Kf5 {[%emt 0:00:42]} 47. Bf1 {[%emt 0:00:19]} Kf4 {[%emt 0:01:31]} 48. Bg2 {[%emt 0:00:06]} Rc4 {[%emt 0:00:12]} 49. Rb2 {[%emt 0:01:02]} Bxd4 {[%emt 0:00:33]} 50. Rb7 {[%emt 0:00:43]} Rc2 {[%emt 0:01:36]} 51. Rf7+ {[%emt 0:00:28]} Ke5 {[%emt 0:00:04]} 52. Rd7 {[%emt 0:00:32]} Bxf2 {[%emt 0:00:40]} 53. Rxd5+ {[%emt 0:00:16]} Kf4 {[%emt 0:00:51]} 54. Bf1 {[%emt 0:00:36]} Rc5+ {[%emt 0:00:32]} 55. Rxc5 {[%emt 0:00:05] Ke5} 1/2-1/2

[Event "4th EFE Metz Festival-IM"]
[Site "Metz"]
[Date "2018.07.27"]
[Round "7"]
[White "Haast, Mark"]
[Black "Adrian, Claude"]
[Result "1-0"]
[ECO "D34"]
[WhiteElo "2356"]
[BlackElo "2267"]
[Annotator "NA"]
[PlyCount "93"]
[EventDate "2018.07.22"]
[EventType "tourn"]
[EventCountry "FRA"]
[SourceTitle "playchess.com"]
[Source "ChessBase"]
[SourceQuality "1"]
[TimeControl "5400+30"]

1. c4 {[%emt 0:00:00]} c5 {[%emt 0:00:14]} 2. g3 {[%emt 0:00:00]} Nf6 {[%emt 0:00:13]} 3. Bg2 {[%emt 0:00:00]} e6 {[%emt 0:00:04]} 4. Nf3 {[%emt 0:00:30]} d5 {[%emt 0:00:05]} 5. cxd5 {[%emt 0:00:26]} exd5 {[%emt 0:00:10]} 6. d4 {[%emt 0:00:29]} Nc6 {[%emt 0:00:07]} 7. O-O {[%emt 0:00:11]} Be7 {[%emt 0:00:05]} 8. Nc3 {[%emt 0:00:10]} O-O {[%emt 0:00:15]} 9. b3 {[%emt 0:01:21]} Re8 {[%emt 0:01:26]} 10. Bb2 {[%emt 0:01:27]} Bg4 {[%emt 0:00:29]} 11. dxc5 {[%emt 0:04:12]} Bxc5 {[%emt 0:00:36]} 12. h3 {[%emt 0:01:48]} Bh5 {[%emt 0:05:30]} 13. e3 {[%emt 0:01:25]} a6 {[%emt 0:11:57]} 14. Ne2 {[%emt 0:01:03]} Ne4 {[%emt 0:09:07]} 15. Nf4 {[%emt 0:03:32]} Bxf3 {[%emt 0:05:41]} 16. Qxf3 {[%emt 0:01:05]} d4 {[%emt 0:08:14]} 17. Rad1 {[%emt 0:01:02]} Ng5 {[%emt 0:02:19]} 18. Qe2 {[%emt 0:09:36]} Qa5 {[%emt 0:03:12]} 19. Bxc6 {[%emt 0:01:55]} bxc6 {[%emt 0:01:49]} 20. Bxd4 {[%emt 0:00:31]} Bd6 {[%emt 0:05:24]} 21. Nh5 {[%emt 0:08:28]} Qf5 {[%emt 0:03:36]} 22. Nxg7 {[%emt 0:09:33]} Qxh3 {[%emt 0:05:07]} 23. Qh5 {[%emt 0:02:57]} Qxh5 {[%emt 0:02:59]} 24. Nxh5 {[%emt 0:00:13]} Re6 {[%emt 0:00:32]} 25. Nf6+ {[%emt 0:01:38]} Kf8 {[%emt 0:00:47]} 26. Kg2 {[%emt 0:01:35]} Be7 {[%emt 0:01:47]} 27. Nd7+ {[%emt 0:02:01]} Ke8 {[%emt 0:00:34]} 28. Nb6 {[%emt 0:01:21]} Rb8 {[%emt 0:01:21]} 29. Nc4 {[%emt 0:00:16]} Bb4 {[%emt 0:01:02]} 30. Rh1 {[%emt 0:01:52]} Rd8 {[%emt 0:01:03]} 31. f4 {[%emt 0:00:59]} c5 {[%emt 0:00:21]} 32. Be5 {[%emt 0:05:49]} Rxd1 {[%emt 0:00:53]} 33. Rxd1 {[%emt 0:00:06]} Ne4 {[%emt 0:00:30]} 34. Kf3 {[%emt 0:01:32]} f5 {[%emt 0:00:31]} 35. g4 {[%emt 0:01:40]} Nc3 {[%emt 0:00:26]} 36. Bxc3 {[%emt 0:01:13]} fxg4+ {[%emt 0:00:18]} 37. Kxg4 {[%emt 0:00:05]} Bxc3 {[%emt 0:00:04]} 38. Rd5 {[%emt 0:01:56]} Rg6+ {[%emt 0:01:26]} 39. Kf3 {[%emt 0:00:05]} Rc6 {[%emt 0:00:28]} 40. e4 {[%emt 0:00:27]} a5 {[%emt 0:02:34]} 41. Rh5 {[%emt 0:00:33]} h6 {[%emt 0:00:09]} 42. e5 a4 {[%emt 0:00:40]} 43. f5 {[%emt 0:00:43]} axb3 {[%emt 0:00:12]} 44. axb3 {[%emt 0:00:02]} Bxe5 {[%emt 0:00:52]} 45. Nxe5 {[%emt 0:00:05]} Rb6 {[%emt 0:00:06]} 46. Ke4 {[%emt 0:00:12]} Rxb3 {[%emt 0:00:06]} 47. Rxh6 {[%emt 0:00:14]} 1-0